bitfinex-derivatives/quotes_BTCF0:USTF0_20251011
["timestamp","ask_amount","ask_price","bid_price","bid_amount"]
[1760147378462,0.3608,111300.0,111290.0,0.1117692]
[1760147378661,0.3608,111300.0,111290.0,0.2317692]
[1760147378662,0.36132,111300.0,111290.0,0.2317692]
[1760147378966,0.36132,111300.0,111290.0,0.14204]
[1760147379260,0.4510411,111300.0,111290.0,0.12]
[1760147379660,0.48768958,111300.0,111290.0,0.12]
[1760147379860,0.49832783,111300.0,111290.0,0.12]
[1760147380463,0.38519673,111300.0,111290.0,0.12]
[1760147380766,0.36132,111300.0,111290.0,0.6321892]
[1760147381367,0.36132,111300.0,111290.0,0.65613668]
[1760147381664,0.36132,111300.0,111290.0,0.2321892]
[1760147381864,0.8510411,111300.0,111290.0,0.12]
[1760147382070,0.48508935,111300.0,111290.0,0.12]
[1760147382763,0.4744511,111300.0,111290.0,0.12]
[1760147383367,0.0897453,111270.0,111260.0,0.19]
[1760147383569,0.7216,111270.0,111260.0,0.04]
[1760147383868,0.8113445,111270.0,111260.0,0.04]
[1760147384365,0.7216,111270.0,111260.0,0.1519525]
[1760147384665,0.3608,111280.0,111270.0,0.1122023]
[1760147384870,0.4505364,111280.0,111270.0,0.12]
[1760147385064,0.3608,111280.0,111270.0,0.2097453]
[1760147385265,0.3608,111280.0,111270.0,0.6322053]
[1760147387468,0.4505373,111280.0,111270.0,0.6322053]
[1760147387867,0.3608,111280.0,111270.0,0.6322053]
[1760147388173,0.3608,111290.0,111280.0,0.1121974]
[1760147388368,0.3608,111290.0,111280.0,0.6221974]
[1760147388672,0.3608,111290.0,111280.0,0.64618612]
[1760147389172,0.3608,111290.0,111280.0,0.24618612]
[1760147389375,0.4505293,111290.0,111280.0,0.13398872]
[1760147389875,0.4505293,111290.0,111280.0,0.11]
[1760147390376,0.4505293,111290.0,111280.0,0.1997375]
[1760147390573,0.3608,111290.0,111280.0,0.55591872]
[1760147390766,0.3608,111290.0,111280.0,0.64565622]
[1760147391172,0.4510433,111300.0,111290.0,0.1117694]
[1760147391373,0.36132,111300.0,111290.0,0.2417694]
[1760147391678,0.36132,111300.0,111290.0,0.66575812]
[1760147392166,0.4510414,111300.0,111290.0,0.17602872]
[1760147392372,0.4510414,111300.0,111290.0,0.55204]
[1760147392569,0.4510414,111300.0,111290.0,0.13]
[1760147393281,0.4510414,111300.0,111290.0,0.15398872]
[1760147393282,0.47815127,111300.0,111290.0,0.15398872]
[1760147393579,0.47815127,111300.0,111290.0,0.13]
[1760147393769,0.38842987,111300.0,111290.0,0.13]
[1760147393971,0.38842987,111300.0,111290.0,0.6417694]
[1760147394265,0.4510414,111300.0,111290.0,0.66575812]
[1760147394470,0.36132,111300.0,111290.0,0.66575812]
[1760147394669,0.00052,111300.0,111290.0,0.67374618]
[1760147394869,0.36132,111300.0,111290.0,0.67374618]
[1760147396178,0.36132,111300.0,111290.0,0.18401678]
[1760147396179,0.4510414,111300.0,111290.0,0.18401678]
[1760147396472,0.4510414,111300.0,111290.0,0.26584436]
[1760147396674,0.4510414,111300.0,111290.0,0.17611486]
[1760147397076,0.4510414,111300.0,111290.0,0.15407486]
[1760147397473,0.36132,111300.0,111290.0,1.08517939]
[1760147397675,0.36132,111300.0,111290.0,0.67374618]
[1760147398076,0.36132,111300.0,111290.0,0.72172362]
[1760147398476,0.36132,111300.0,111290.0,0.68974684]
[1760147399180,0.02238,111340.0,111330.0,0.0896972]
[1760147399380,0.02238,111340.0,111330.0,1.38983233]
[1760147399580,0.02238,111340.0,111330.0,1.45416512]
[1760147399779,0.02238,111340.0,111330.0,1.05416512]
[1760147399974,0.02238,111340.0,111330.0,1.45416512]
[1760147400378,0.02238,111340.0,111330.0,0.63482999]
[1760147400572,0.02238,111340.0,111330.0,1.05416512]
[1760147401383,0.02238,111340.0,111330.0,0.63482999]
[1760147401687,0.02238,111340.0,111330.0,0.5704972]
[1760147401984,0.4728691,111340.0,111330.0,0.16824254]
[1760147402187,0.38318,111340.0,111330.0,0.25793974]
[1760147402580,0.8728691,111340.0,111330.0,0.09559947]
[1760147402781,0.8728691,111340.0,111330.0,0.08756002]
[1760147403884,0.8728691,111340.0,111330.0,0.06344]
[1760147404287,0.8728691,111340.0,111330.0,0.08756002]
[1760147404490,0.8728691,111340.0,111330.0,0.06344]
[1760147404786,1.29220423,111340.0,111330.0,0.06344]
[1760147405688,0.8728691,111340.0,111330.0,0.06344]
[1760147405892,1.29220423,111340.0,111330.0,0.06344]
[1760147406091,0.8728691,111340.0,111330.0,0.06344]
[1760147406493,1.29220423,111340.0,111330.0,0.06344]
[1760147406800,0.1120933,111310.0,111300.0,0.20215947]
[1760147406994,0.4728933,111310.0,111300.0,0.15215947]
[1760147407691,0.38318,111310.0,111300.0,0.24188087]
[1760147407990,0.02238,111310.0,111300.0,0.65796394]
[1760147408199,0.02238,111310.0,111300.0,0.97150538]
[1760147408396,0.02238,111310.0,111300.0,0.66122678]
[1760147408791,0.02238,111310.0,111300.0,1.43809907]
[1760147408996,0.02238,111310.0,111300.0,1.07729907]
[1760147409395,0.02238,111310.0,111300.0,1.03809907]
[1760147409696,0.02238,111310.0,111300.0,1.43809907]
[1760147409995,0.02238,111310.0,111300.0,1.03485419]
[1760147410202,0.02238,111310.0,111300.0,1.45418932]
[1760147410591,0.02238,111310.0,111300.0,0.98985653]
[1760147410796,0.02238,111310.0,111300.0,1.05418066]
[1760147411400,0.02238,111310.0,111300.0,1.45418066]
[1760147411601,0.1120933,111310.0,111300.0,0.53933513]
[1760147411796,0.02238,111310.0,111300.0,0.62905653]
[1760147412497,0.02238,111310.0,111300.0,1.38985653]
[1760147412698,0.02238,111310.0,111300.0,1.43810334]
[1760147413002,0.02238,111310.0,111300.0,1.38985653]
[1760147413905,0.02238,111310.0,111300.0,1.43810107]
[1760147414199,0.02238,111310.0,111300.0,1.03810107]
[1760147414398,0.02238,111310.0,111300.0,0.98985653]
[1760147415602,0.0229,111310.0,111300.0,1.38985653]
[1760147416699,0.0229,111310.0,111300.0,1.45418066]
[1760147416892,0.0229,111310.0,111300.0,1.38985653]
[1760147417903,0.0229,111310.0,111300.0,1.02905653]
[1760147418197,0.1126133,111310.0,111300.0,0.53933513]
[1760147418403,0.12301562,111310.0,111300.0,0.16828615]
[1760147418705,0.88381562,111310.0,111300.0,0.20047864]
[1760147419006,0.1137014,111300.0,111290.0,0.03219249]
[1760147419303,0.4745014,111300.0,111290.0,0.06]
[1760147419601,1.29383653,111300.0,111290.0,1e-07]
[1760147419900,0.1137256,111270.0,111260.0,0.14828615]
[1760147420205,0.4745256,111270.0,111260.0,0.13172615]
[1760147420599,0.54637237,111270.0,111260.0,0.13172615]
[1760147420804,0.54637237,111270.0,111260.0,0.15441898]
[1760147420805,0.10922908,111270.0,111260.0,0.15441898]
[1760147421003,0.09582677,111270.0,111260.0,0.57375411]
[1760147421200,0.09582677,111270.0,111260.0,1.33455411]
[1760147421504,0.09582677,111270.0,111260.0,0.97954311]
[1760147421695,0.02398,111270.0,111260.0,1.33455411]
[1760147421904,0.02398,111280.0,111270.0,0.0897456]
[1760147422104,0.02398,111280.0,111270.0,1.07686394]
[1760147422401,0.02398,111280.0,111270.0,1.47686394]
[1760147422599,0.02398,111280.0,111270.0,1.41257356]
[1760147422799,0.02398,111290.0,111270.0,1.41257356]
[1760147423004,0.02398,111300.0,111290.0,0.0897294]
[1760147423199,0.02398,111300.0,111290.0,1.43764676]
[1760147423397,0.00052,111310.0,111290.0,1.85331976]
[1760147423608,0.02398,111340.0,111320.0,0.0897043]
[1760147423807,0.00052,111330.0,111320.0,0.6574713]
[1760147424206,0.00052,111330.0,111320.0,0.54269283]
[1760147424408,0.07182582,111330.0,111320.0,0.14269283]
[1760147424798,0.00052,111330.0,111320.0,1.32282796]
[1760147426307,0.00052,111330.0,111320.0,0.90349283]
[1760147426606,0.00052,111330.0,111320.0,1.32282796]
[1760147426801,0.00052,111330.0,111320.0,0.90349283]
[1760147427008,0.00052,111330.0,111320.0,1.32282796]
[1760147427308,0.00052,111330.0,111320.0,0.90349283]
[1760147427504,0.00052,111330.0,111320.0,0.50349283]
[1760147427704,0.00052,111330.0,111320.0,0.92282796]
[1760147427909,0.43467786,111330.0,111320.0,0.14269283]
[1760147428108,0.07387786,111330.0,111320.0,0.56202796]
[1760147428508,0.07387786,111330.0,111320.0,1.41253316]
[1760147429004,0.07387786,111330.0,111320.0,1.32282796]
[1760147429005,0.09785786,111330.0,111320.0,1.32282796]
[1760147429209,0.09785786,111330.0,111320.0,0.56202796]
[1760147429710,0.54835506,111330.0,111320.0,0.14269283]
[1760147429911,0.94835506,111330.0,111320.0,0.14269283]
[1760147432311,0.54835506,111330.0,111320.0,0.14269283]
[1760147433210,0.94835506,111330.0,111320.0,0.14269283]
[1760147433712,0.54835506,111330.0,111320.0,0.14269283]
[1760147434512,0.54835506,111330.0,111320.0,0.14266678]
[1760147434814,0.09785786,111330.0,111320.0,1.38984033]
[1760147435215,0.00052,111330.0,111320.0,1.38984033]
[1760147435607,0.02398,111340.0,111330.0,0.0896972]
[1760147435817,0.0245,111340.0,111330.0,1.38983233]
[1760147436109,0.00052,111340.0,111330.0,1.38983233]
[1760147436309,0.02398,111360.0,111350.0,0.0896811]
[1760147436610,0.02398,111370.0,111360.0,0.089673]
[1760147436814,0.0245,111370.0,111360.0,0.98980813]
[1760147437010,0.02398,111380.0,111360.0,0.8808]
[1760147437310,0.02398,111380.0,111370.0,0.86980013]
[1760147437511,0.0245,111380.0,111370.0,0.97980013]
[1760147437909,0.02398,111390.0,111380.0,0.0896569]
[1760147438114,0.0245,111390.0,111380.0,0.52933513]
[1760147439012,0.0245,111390.0,111380.0,0.97979203]
[1760147439214,0.0245,111390.0,111380.0,1.37979203]
[1760147439620,0.00052,111390.0,111380.0,1.37979203]
[1760147439814,0.02398,111420.0,111410.0,0.0896328]
[1760147440113,0.0245,111420.0,111410.0,0.63896793]
[1760147440509,0.0245,111420.0,111410.0,0.99976793]
[1760147440709,0.0245,111420.0,111410.0,0.5804328]
[1760147440917,0.0245,111420.0,111410.0,1.39976793]
[1760147441523,0.0245,111420.0,111410.0,1.31013513]
[1760147441725,0.0245,111420.0,111410.0,0.4908]
[1760147441915,0.8749247,111420.0,111410.0,0.13]
[1760147442415,0.3853,111420.0,111410.0,0.54933513]
[1760147442620,0.39583724,111420.0,111410.0,0.54933513]
[1760147442920,0.39583724,111420.0,111410.0,0.2196328]
[1760147443221,0.03503724,111420.0,111410.0,1.39976793]
[1760147443409,0.0245,111420.0,111410.0,1.39976793]
[1760147443821,0.0245,111420.0,111410.0,0.63896793]
[1760147444020,0.0245,111420.0,111410.0,0.54933513]
[1760147444520,0.0245,111420.0,111410.0,0.63896793]
[1760147444718,0.8749247,111420.0,111410.0,0.13]
[1760147445917,0.8749247,111420.0,111410.0,0.0867528]
[1760147446120,1.29425983,111420.0,111410.0,0.0867528]
[1760147446322,1.29425983,111420.0,111410.0,1e-07]
[1760147446721,0.1120488,111390.0,111380.0,8.108e-05]
[1760147446925,0.8336488,111390.0,111380.0,0.05207088]
[1760147447224,1.65298393,111390.0,111380.0,8e-08]
[1760147447414,0.0224,111340.0,111330.0,0.50903223]
[1760147447721,0.4734091,111340.0,111330.0,0.53933513]
[1760147447922,0.47349308,111340.0,111330.0,0.06348]
[1760147448116,0.87349308,111340.0,111330.0,0.06348]
[1760147449119,1.29282821,111340.0,111330.0,0.06348]
[1760147449319,1.29282821,111340.0,111330.0,0.0409209]
[1760147449520,0.0897133,111310.0,111300.0,0.01]
[1760147449722,0.36088398,111310.0,111300.0,0.12]
[1760147450622,0.36088398,111310.0,111300.0,0.53933513]
[1760147451019,8.398e-05,111310.0,111300.0,1.02905653]
[1760147451518,8.398e-05,111310.0,111300.0,1.38985653]
[1760147452018,8.398e-05,111310.0,111300.0,1.02905653]
[1760147452426,8.398e-05,111310.0,111300.0,1.38985653]
[1760147453321,8.398e-05,111310.0,111300.0,1.00240839]
[1760147453527,0.02178,111320.0,111310.0,0.0897133]
[1760147453824,0.02178,111320.0,111310.0,0.98984843]
[1760147454018,0.02178,111320.0,111310.0,1.38984843]
[1760147454219,0.02178,111320.0,111310.0,1.02173542]
[1760147454420,0.02178,111320.0,111310.0,0.98984843]
[1760147454627,0.02178,111320.0,111310.0,1.38984843]
[1760147455015,0.02178,111330.0,111320.0,0.0897053]
[1760147455220,0.02292,111340.0,111330.0,0.0896972]
[1760147455526,0.00052,111340.0,111330.0,1.44777326]
[1760147455726,0.0224,111350.0,111340.0,0.0896891]
[1760147455923,0.02292,111350.0,111340.0,1.05776386]
[1760147456128,0.02292,111350.0,111340.0,1.45776386]
[1760147456328,0.00052,111350.0,111340.0,1.45776386]
[1760147457427,0.02178,111360.0,111350.0,0.0896811]
[1760147457618,0.02178,111370.0,111360.0,0.089673]
[1760147457824,0.0223,111370.0,111360.0,0.98487147]
[1760147458124,0.08365931,111390.0,111380.0,0.0896569]
[1760147458322,0.07352984,111390.0,111380.0,0.91690964]
[1760147458721,0.00052,111390.0,111380.0,0.55610964]
[1760147459025,0.00052,111390.0,111380.0,1.31690964]
[1760147459217,0.00052,111390.0,111380.0,0.55610964]
[1760147459524,0.0901689,111390.0,111380.0,0.46645274]
[1760147459726,0.8509689,111390.0,111380.0,0.11]
[1760147459927,0.4509689,111390.0,111380.0,0.11]
[1760147460129,0.8509689,111390.0,111380.0,0.11]
[1760147460425,0.8509689,111390.0,111380.0,0.0830418]
[1760147460926,0.111453,111360.0,111350.0,0.18]
[1760147461126,0.02178,111340.0,111330.0,0.13764293]
[1760147461327,0.02178,111340.0,111330.0,0.58844293]
[1760147461628,0.02178,111340.0,111330.0,0.98844293]
[1760147461822,0.02178,111360.0,111350.0,0.0896811]
[1760147462127,0.472253,111360.0,111350.0,0.47645274]
[1760147462423,0.02178,111360.0,111350.0,1.32693384]
[1760147463527,0.02178,111360.0,111350.0,0.92693384]
[1760147463828,0.02178,111360.0,111350.0,1.32693384]
[1760147464729,0.02178,111360.0,111350.0,0.47645274]
[1760147464928,0.42178,111360.0,111350.0,0.54723446]
[1760147465228,0.42178,111360.0,111350.0,0.19078172]
[1760147465229,0.872253,111360.0,111350.0,0.19078172]
[1760147465422,0.872253,111360.0,111350.0,0.1427358]
[1760147465627,0.88262163,111360.0,111350.0,0.1427358]
[1760147466528,0.88262163,111360.0,111350.0,0.0861758]
[1760147466728,0.12184583,111330.0,111320.0,0.11344]
[1760147466932,0.10008193,111310.0,111300.0,0.04804592]
[1760147467133,0.46088193,111310.0,111300.0,0.11]
[1760147467432,1.22168193,111310.0,111300.0,0.13403782]
[1760147467623,1.22168193,111310.0,111300.0,0.11]
[1760147467832,1.23403488,111310.0,111300.0,0.11]
[1760147468332,1.22168193,111310.0,111300.0,0.11]
[1760147469937,0.02202,111260.0,111240.0,0.04804592]
[1760147470127,0.01088863,111250.0,111240.0,0.47645274]
[1760147470332,0.01088863,111250.0,111240.0,0.56622254]
[1760147470631,0.00052,111250.0,111240.0,0.92702254]
[1760147470831,0.03238863,111260.0,111250.0,0.0897617]
[1760147471028,0.03290863,111260.0,111250.0,0.2197617]
[1760147471223,0.03297733,111260.0,111250.0,0.2197617]
[1760147471630,0.0226087,111260.0,111250.0,0.2197617]
[1760147472024,0.3834087,111260.0,111250.0,0.13]
[1760147472231,0.7834087,111260.0,111250.0,0.13]
[1760147472728,0.8731623,111260.0,111250.0,0.13]
[1760147474741,0.4731623,111260.0,111250.0,0.13]
[1760147474940,0.8731623,111260.0,111250.0,0.13]
[1760147475634,0.0897778,111230.0,111220.0,0.1]
[1760147475938,0.0897778,111230.0,111210.0,6.759e-05]
[1760147475939,0.02202,111220.0,111210.0,6.759e-05]
[1760147476132,0.4726059,111220.0,111210.0,0.12006759]
[1760147476332,0.02202,111220.0,111210.0,0.12006759]
[1760147476536,0.02202,111220.0,111210.0,0.20986159]
[1760147476736,0.02202,111220.0,111210.0,0.12006759]
[1760147476737,0.4726059,111220.0,111210.0,0.12006759]
[1760147477333,0.8726059,111220.0,111210.0,0.12006759]
[1760147477639,0.38282,111220.0,111210.0,0.12006759]
[1760147478028,0.8726059,111220.0,111210.0,0.12006759]
[1760147478233,0.8726059,111220.0,111210.0,0.06346759]
[1760147478736,0.39334586,111220.0,111210.0,0.08580592]
[1760147479139,0.39334586,111220.0,111210.0,0.17559992]
[1760147479345,0.39334586,111220.0,111210.0,0.08580592]
[1760147479530,0.48313176,111220.0,111210.0,0.08580592]
[1760147479836,0.88313176,111220.0,111210.0,0.08580592]
[1760147480438,0.39334586,111220.0,111210.0,0.08580592]
[1760147480834,0.03254586,111220.0,111210.0,0.17559992]
[1760147481242,0.39334586,111220.0,111210.0,0.15326159]
[1760147481443,0.48313176,111220.0,111210.0,0.06346759]
[1760147481640,0.88313176,111220.0,111210.0,0.06346759]
[1760147482039,0.03254586,111220.0,111210.0,0.15326159]
[1760147482234,0.02202,111220.0,111210.0,0.15326159]
[1760147482536,0.39334586,111220.0,111210.0,0.17554232]
[1760147482737,0.03254586,111220.0,111210.0,0.17554232]
[1760147482941,0.03254586,111220.0,111210.0,0.93634232]
[1760147483146,0.02202,111220.0,111210.0,0.93634232]
[1760147483542,0.02202,111220.0,111210.0,1.29279506]
[1760147483745,0.38282,111220.0,111210.0,0.44220106]
[1760147484040,0.38282,111220.0,111210.0,0.08574832]
[1760147484242,0.4726059,111220.0,111210.0,0.08574832]
[1760147484442,0.8726059,111220.0,111210.0,0.06346759]
[1760147485433,0.8726059,111220.0,111210.0,0.08577495]
[1760147485639,0.8726059,111220.0,111210.0,0.06346759]
[1760147486046,0.38282,111220.0,111210.0,0.15326159]
[1760147486347,0.38282,111220.0,111210.0,0.17557468]
[1760147486644,0.02202,111220.0,111210.0,0.17557398]
[1760147486840,0.38282,111220.0,111210.0,0.17557398]
[1760147487045,0.8726059,111220.0,111210.0,0.08577998]
[1760147487239,0.38282,111220.0,111210.0,0.15326159]
[1760147487442,0.38282,111220.0,111210.0,0.17558314]
[1760147487649,0.78282,111220.0,111210.0,0.06346759]
[1760147488044,0.8726059,111220.0,111210.0,0.00686759]
[1760147488841,0.1118382,111180.0,111170.0,8.112e-05]
[1760147489041,0.83402962,111180.0,111170.0,0.14242539]
[1760147489244,1.23402962,111180.0,111170.0,0.12008112]
[1760147489443,1.14421142,111180.0,111170.0,0.08584246]
[1760147489646,1.23402962,111180.0,111170.0,0.06348112]
[1760147489946,0.02261142,111180.0,111170.0,0.91410742]
[1760147490150,0.00059142,111180.0,111170.0,0.93646807]
[1760147490441,0.00059142,111180.0,111170.0,1.29292081]
[1760147490642,0.02254002,111180.0,111170.0,0.53646807]
[1760147490848,0.02254002,111180.0,111170.0,0.53212081]
[1760147491043,0.00052002,111180.0,111170.0,1.29292081]
[1760147491245,0.02202,111200.0,111190.0,0.0898102]
[1760147491548,0.02202,111200.0,111190.0,0.95942359]
[1760147491549,0.02254,111200.0,111190.0,0.95942359]
[1760147491743,0.02254,111200.0,111190.0,0.15236065]
[1760147491946,0.02254,111200.0,111190.0,0.24217085]
[1760147492148,0.02264233,111200.0,111190.0,1.00297085]
[1760147492545,0.00062233,111200.0,111190.0,1.00297085]
[1760147492751,0.00052,111200.0,111190.0,0.63478662]
[1760147492945,0.00052,111200.0,111190.0,1.03478662]
[1760147493148,0.00052006,111230.0,111220.0,0.0897859]
[1760147493354,0.00052,111230.0,111220.0,1.35205427]
[1760147493547,0.00052,111230.0,111220.0,1.75205427]
[1760147493755,0.02202,111240.0,111230.0,0.0897778]
[1760147494056,0.02854221,111260.0,111250.0,0.0897617]
[1760147494254,0.02906221,111260.0,111250.0,0.59292235]
[1760147494447,0.02906221,111260.0,111250.0,0.26397733]
[1760147494755,0.00704221,111260.0,111250.0,1.38123007]
[1760147494949,0.00052,111260.0,111250.0,1.01860762]
[1760147495150,0.00052,111260.0,111250.0,0.61426036]
[1760147495456,0.00052,111260.0,111250.0,1.32701444]
[1760147496351,0.02854221,111290.0,111270.0,0.0897455]
[1760147496557,0.02202,111290.0,111280.0,0.49422739]
[1760147496753,0.02254,111290.0,111280.0,0.16803715]
[1760147496951,0.4730694,111290.0,111280.0,0.15202378]
[1760147497254,0.8730694,111290.0,111280.0,0.12]
[1760147497453,0.02254,111290.0,111280.0,0.12]
[1760147497648,0.02254,111290.0,111280.0,0.24176128]
[1760147497953,0.02254,111290.0,111280.0,0.2097375]
[1760147498155,0.02254,111290.0,111280.0,0.12]
[1760147498551,0.02254,111290.0,111280.0,0.5705375]
[1760147498859,0.00052,111290.0,111280.0,0.9705375]
[1760147499259,0.00052,111290.0,111280.0,0.96619024]
[1760147499462,0.00052,111290.0,111280.0,1.32699024]
[1760147499653,0.02202,111320.0,111310.0,0.0897133]
[1760147499958,0.02254,111320.0,111310.0,0.14201334]
[1760147500155,0.4730452,111320.0,111310.0,0.14201334]
[1760147500457,0.02254,111320.0,111310.0,0.14201334]
[1760147500760,0.02254,111320.0,111310.0,0.99252664]
[1760147501055,0.00052,111320.0,111310.0,1.00853325]
[1760147501252,0.02379,111320.0,111310.0,0.4708]
[1760147501455,0.02379,111320.0,111310.0,0.50275298]
[1760147501654,0.1134952,111320.0,111310.0,0.14195298]
[1760147501856,0.4742952,111320.0,111310.0,0.11]
[1760147502060,0.8742952,111320.0,111310.0,0.11]
[1760147502561,0.4742952,111320.0,111310.0,0.11]
[1760147503358,0.8742952,111320.0,111310.0,0.11]
[1760147503962,0.4742952,111320.0,111310.0,0.11]
[1760147504160,0.8742952,111320.0,111310.0,0.11]
[1760147504556,0.4742952,111320.0,111310.0,0.11]
[1760147504762,0.38459,111320.0,111310.0,0.1997133]
[1760147504961,0.00052,111320.0,111310.0,0.9605133]
[1760147505362,0.02202,111340.0,111330.0,0.0896972]
[1760147505567,0.02254,111340.0,111330.0,0.91694994]
[1760147506160,0.38334,111340.0,111330.0,0.1996972]
[1760147506355,0.02254,111340.0,111330.0,0.1996972]
[1760147506755,0.02254,111340.0,111330.0,0.0534]
[1760147506756,0.4730291,111340.0,111330.0,0.0534]
[1760147507568,0.8730291,111340.0,111330.0,0.0534]
[1760147507861,0.4730291,111340.0,111330.0,0.0534]
[1760147508656,0.02254,111340.0,111330.0,0.0534]
[1760147508864,0.02254,111340.0,111330.0,0.1430972]
[1760147509168,0.4730291,111340.0,111330.0,0.0534]
[1760147509560,0.02254,111340.0,111330.0,1.26034994]
[1760147509760,0.02254,111340.0,111330.0,0.89954994]
[1760147509962,0.00052,111340.0,111330.0,1.26034994]
[1760147510667,0.02202,111360.0,111350.0,0.0896811]
[1760147510970,0.02254,111360.0,111350.0,0.94693384]
[1760147511164,0.112213,111360.0,111350.0,0.49645274]
[1760147511365,0.02254,111360.0,111350.0,0.229681]
[1760147511566,0.112213,111360.0,111350.0,0.14]
[1760147511769,0.873013,111360.0,111350.0,0.14]
[1760147512174,0.473013,111360.0,111350.0,0.14]
[1760147512372,0.873013,111360.0,111350.0,0.14]
[1760147512772,0.873013,111360.0,111350.0,0.0060859]
[1760147513076,0.02216,111300.0,111290.0,8.664e-05]
[1760147513277,0.02268,111300.0,111290.0,0.14008664]
[1760147513679,0.4732013,111300.0,111290.0,0.14008664]
[1760147514775,0.8732013,111300.0,111290.0,0.14008664]
[1760147515077,0.88489221,111300.0,111290.0,0.11576814]
[1760147515378,0.88489221,111300.0,111290.0,0.06878614]
[1760147515680,0.88489221,111300.0,111250.0,0.35645274]
[1760147515681,0.02216,111260.0,111250.0,0.35645274]
[1760147515879,0.4727206,111260.0,111250.0,0.14]
[1760147516075,0.47278352,111260.0,111250.0,0.14]
[1760147516578,0.87278352,111260.0,111250.0,0.14]
[1760147517681,0.38302292,111260.0,111250.0,0.14]
[1760147517881,0.47277652,111260.0,111250.0,0.14]
[1760147518082,0.87277652,111260.0,111250.0,0.14]
[1760147518479,0.78302292,111260.0,111250.0,0.14]
[1760147518680,0.87277652,111260.0,111250.0,0.14]
[1760147518986,0.47277652,111260.0,111250.0,0.14]
[1760147519382,0.87277652,111260.0,111250.0,0.14]
[1760147520488,1.29250986,111260.0,111250.0,0.0552206]
[1760147520885,0.02216,111240.0,111220.0,0.61973334]
[1760147521080,0.00052,111230.0,111220.0,0.99031924]
[1760147521280,0.02216,111240.0,111230.0,0.0897778]
[1760147521481,0.02068,111240.0,111230.0,1.39031114]
[1760147521680,0.02068,111240.0,111230.0,1.42226412]
[1760147521877,0.02222292,111260.0,111250.0,0.0897617]
[1760147522080,0.02222292,111260.0,111250.0,1.02224802]
[1760147522081,0.02274292,111260.0,111250.0,1.02224802]
[1760147522280,2e-08,111260.0,111250.0,1.43831499]
[1760147522484,0.00052,111260.0,111250.0,1.34855329]
[1760147522686,0.02216,111280.0,111270.0,0.0897455]
[1760147522889,0.02268,111280.0,111270.0,0.98027884]
[1760147523078,0.02268,111280.0,111270.0,0.61947884]
[1760147523281,0.02268,111280.0,111270.0,1.38027884]
[1760147523482,0.02268,111280.0,111270.0,0.98027884]
[1760147523889,0.02268,111280.0,111270.0,1.01231228]
[1760147524085,0.02268,111280.0,111270.0,0.23277894]
[1760147524284,0.02268,111280.0,111270.0,0.65251228]
[1760147524483,0.02268,111280.0,111270.0,1.02929879]
[1760147524684,0.00052,111280.0,111270.0,1.43029879]
[1760147525087,0.00052,111280.0,111270.0,1.38227884]
[1760147525289,0.02216,111300.0,111290.0,0.0897294]
[1760147525590,0.02268,111300.0,111290.0,0.99026274]
[1760147525790,0.02268,111300.0,111290.0,1.0223132]
[1760147525988,0.02268,111300.0,111290.0,0.99026274]
[1760147526286,0.02268,111300.0,111290.0,0.1520529]
[1760147526486,0.8732013,111300.0,111290.0,0.0954529]
[1760147526690,0.8732013,111300.0,111290.0,0.0634]
[1760147526890,0.5124013,111300.0,111290.0,0.0634]
[1760147527192,0.5124013,111300.0,111290.0,0.0068]
[1760147527193,0.89293464,111300.0,111290.0,0.0068]
[1760147527391,0.1118975,111280.0,111270.0,0.0320529]
[1760147527589,0.8334975,111280.0,111270.0,0.11]
[1760147528187,0.8334975,111280.0,111270.0,0.0534]
[1760147528896,1.2334975,111280.0,111270.0,0.0534]
[1760147529092,1.65323084,111280.0,111270.0,0.0534]
[1760147529294,1.65323084,111280.0,111270.0,0.0544]
[1760147529593,0.0887617,111250.0,111240.0,0.1778]
[1760147529792,0.1116297,111240.0,111220.0,0.0320529]
[1760147530093,0.4724297,111240.0,111230.0,0.02404309]
[1760147530294,0.4724297,111240.0,111230.0,0.14404309]
[1760147530485,0.4724297,111240.0,111230.0,0.54404309]
[1760147530794,0.38266,111240.0,111230.0,0.14404309]
[1760147531295,0.38266,111240.0,111230.0,0.122]
[1760147531485,0.38266,111240.0,111230.0,0.14604309]
[1760147532293,0.38266,111240.0,111230.0,0.54804309]
[1760147532699,0.02186,111240.0,111230.0,0.54804309]
[1760147532897,0.02186,111240.0,111230.0,0.14804309]
[1760147533196,0.02186,111240.0,111230.0,0.50884309]
[1760147533794,0.38266,111260.0,111230.0,1.41835423]
[1760147533989,0.38266,111260.0,111240.0,0.44377643]
[1760147534189,0.02186,111260.0,111240.0,0.57377643]
[1760147534391,0.38266,111260.0,111240.0,0.54973334]
[1760147534797,0.02186,111260.0,111240.0,1.00030284]
[1760147534992,0.02186,111260.0,111240.0,0.13]
[1760147535198,0.4505617,111250.0,111240.0,0.13]
[1760147535395,0.0897617,111250.0,111240.0,0.13]
[1760147535598,0.4724152,111260.0,111240.0,0.13]
[1760147535800,0.89214854,111260.0,111240.0,0.13]
[1760147536000,0.02186,111250.0,111240.0,0.13]
[1760147536201,0.89215504,111250.0,111240.0,0.131]
[1760147536897,1.29215504,111250.0,111240.0,0.131]
[1760147537099,1.29215504,111250.0,111240.0,0.133]
[1760147537500,1.29215504,111250.0,111240.0,0.0572227]
[1760147537800,0.1116453,111220.0,111210.0,0.19]
[1760147537997,0.89217864,111220.0,111210.0,0.14]
[1760147538199,0.89017864,111220.0,111210.0,0.14]
[1760147538402,0.80039334,111220.0,111210.0,0.14]
[1760147538698,0.01986,111220.0,111210.0,0.14]
[1760147538895,0.43959334,111220.0,111210.0,0.14]
[1760147539101,0.43959334,111220.0,111210.0,0.142]
[1760147539501,0.89017924,111220.0,111210.0,0.142]
[1760147539692,0.89017924,111220.0,111210.0,0.145]
[1760147540093,0.38066,111220.0,111210.0,0.145]
[1760147540294,0.80039334,111220.0,111210.0,0.145]
[1760147540506,0.89017924,111220.0,111210.0,0.145]
[1760147541000,0.4704459,111220.0,111210.0,0.145]
[1760147541203,0.89017924,111220.0,111210.0,0.145]
[1760147541708,1.29017924,111220.0,111210.0,0.145]
[1760147542998,1.29017924,111220.0,111210.0,0.1439191]
[1760147543204,1.29017924,111220.0,111210.0,0.112934]
[1760147543505,0.111654,111210.0,111200.0,7.123e-05]
[1760147543808,0.89218734,111210.0,111200.0,0.01007123]
[1760147544107,1.29218734,111210.0,111200.0,3e-08]
[1760147544701,0.89218734,111210.0,111200.0,0.00200003]